lending/lending_fUSD_20240401
["ID","MTS","AMOUNT","RATE_DAILY","PERIOD"]
[321241149,1712009471182,-500.0,0.00058355,120]
[321241150,1712009471192,-546.82,0.00058355,120]
[321241151,1712009471202,-527.78,0.00058355,120]
[321241152,1712009471211,-500.0,0.00058356,120]
[321241153,1712009471231,-500.0,0.00058356,120]
[321241154,1712009471247,-500.0,0.00058356,120]
[321241155,1712009471265,-551.71,0.00058356,120]
[321241156,1712009471284,-500.0,0.00058356,120]
[321241157,1712009471301,-500.0,0.00058356,120]
[321241158,1712009471317,-500.0,0.00058356,120]
[321241159,1712009471334,-500.0,0.00058356,120]
[321241160,1712009471352,-500.0,0.00058356,120]
[321241161,1712009471369,-150.0,0.00058356,120]
[321241162,1712009471387,-500.0,0.00058356,120]
[321241163,1712009471406,-500.0,0.00058356,120]
[321241164,1712009471426,-500.0,0.00058356,120]
[321241165,1712009471438,-500.0,0.00058356,120]
[321241166,1712009471454,-364.84,0.00058356,120]
[321241167,1712009471470,-500.0,0.00058356,120]
[321241168,1712009471484,-500.0,0.00058356,120]
[321241169,1712009471499,-567.46,0.00058356,120]
[321241170,1712009471513,-2940.4,0.00058356,120]
[321241171,1712009471528,-500.0,0.00058356,120]
[321241172,1712009471543,-9617.67,0.00058356,120]
[321241173,1712009471558,-500.0,0.00058356,120]
[321241174,1712009471572,-3963.56,0.00058356,120]
[321241175,1712009471587,-500.0,0.00058356,120]
[321241176,1712009471602,-1171.94,0.00058356,120]
[321241177,1712009471618,-1592.94,0.00058356,120]
[321241178,1712009471635,-500.0,0.00058356,120]
[321241179,1712009471651,-500.0,0.00058356,120]
[321241180,1712009471667,-519.04,0.00058356,120]
[321241181,1712009471682,-500.0,0.00058356,120]
[321241182,1712009471697,-500.0,0.00058356,120]
[321241183,1712009471712,-500.0,0.00058356,120]
[321241184,1712009471727,-649.04,0.00058356,120]
[321241185,1712009471741,-500.0,0.00058356,120]
[321241186,1712009471759,-735.74,0.00058356,120]
[321241187,1712009471772,-2396.91,0.00058356,120]
[321241188,1712009471787,-710.69,0.00058356,120]
[321241189,1712009471803,-500.0,0.00058356,120]
[321241190,1712009471818,-5307.53,0.00058356,120]
[321241191,1712009471834,-509.91,0.00058356,120]
[321241192,1712009471848,-674.12,0.00058356,120]
[321241193,1712009471863,-500.0,0.00058356,120]
[321241194,1712009471878,-7130.05,0.00058356,120]
[321241195,1712009471893,-500.0,0.00058356,120]
[321241196,1712009471907,-784.39,0.00058356,120]
[321241197,1712009471920,-500.0,0.00058356,120]
[321241198,1712009471935,-583.87,0.00058356,120]
[321241199,1712009471950,-683.13,0.00058356,120]
[321241200,1712009471964,-8568.4,0.00058356,120]
[321241201,1712009471979,-500.0,0.00058356,120]
[321241202,1712009471995,-828.92,0.00058356,120]
[321241203,1712009472010,-718.19,0.00058356,120]
[321241204,1712009472026,-500.0,0.00058356,120]
[321241205,1712009472042,-524.83,0.00058356,120]
[321241206,1712009472056,-644.16,0.00058356,21]
[321241207,1712009472072,-1373.74,0.00058356,120]
[321241208,1712009472087,-526.38,0.00058356,120]
[321241209,1712009472101,-594.12,0.00058356,120]
[321241210,1712009472117,-610.54,0.00058356,120]
[321241211,1712009472134,-595.4,0.00058356,120]
[321241212,1712009472150,-500.0,0.00058356,120]
[321241213,1712009472290,-1259.72,0.00058356,120]
[321241214,1712009472301,-500.0,0.00058356,120]
[321241215,1712009472310,-500.0,0.00058356,120]
[321241216,1712009472320,-674.09,0.00058356,120]
[321241217,1712009472330,-500.0,0.00058356,120]
[321241218,1712009472339,-500.0,0.00058356,120]
[321241219,1712009472348,-1198.7,0.00058356,120]
[321241220,1712009472357,-500.0,0.00058356,120]
[321241221,1712009472367,-662.7,0.00058356,120]
[321241222,1712009472378,-521.23,0.00058356,120]
[321241223,1712009472387,-601.98,0.00058356,120]
[321241224,1712009472396,-521.91,0.00058356,120]
[321241225,1712009472406,-763.21,0.00058356,120]
[321241226,1712009472415,-500.0,0.00058356,120]
[321241227,1712009472425,-575.65,0.00058356,120]
[321241228,1712009472434,-541.69,0.00058356,120]
[321241229,1712009472444,-2967.44,0.00058356,120]
[321241230,1712009472454,-1260.46,0.00058356,120]
[321241231,1712009472463,-1749.5,0.00058356,120]
[321241232,1712009472472,-540.76,0.00058356,120]
[321241233,1712009472481,-1186.18,0.00058356,120]
[321241234,1712009472491,-910.97,0.00058356,120]
[321241235,1712009472500,-500.0,0.00058356,120]
[321241236,1712009472509,-654.57,0.00058356,120]
[321241237,1712009472519,-1734.15,0.00058356,120]
[321241238,1712009472528,-932.52,0.00058356,120]
[321241239,1712009472537,-622.78,0.00058356,120]
[321241240,1712009472546,-534.95,0.00058356,120]
[321241241,1712009472555,-1828.04,0.00058356,120]
[321241242,1712009472564,-500.0,0.00058356,120]
[321241243,1712009472573,-644.85,0.00058356,120]
[321241244,1712009472583,-627.7,0.00058356,120]
[321241245,1712009472592,-500.0,0.00058356,120]
[321241246,1712009472602,-532.88,0.00058356,120]
[321241247,1712009472611,-500.0,0.00058356,120]
[321241248,1712009472620,-500.0,0.00058356,7]
[321241249,1712009472632,-500.0,0.00058356,120]
[321241250,1712009472641,-1511.02,0.00058356,120]
[321241251,1712009472649,-539.45,0.00058356,120]
[321241252,1712009472658,-500.0,0.00058356,120]
[321241253,1712009472667,-1184.28,0.00058356,120]
[321241254,1712009472676,-500.0,0.00058356,120]
[321241255,1712009472686,-545.44,0.00058356,120]
[321241256,1712009472695,-5283.13851962,0.00058565,37]
[321241257,1712009472704,-1000.0,0.00058575,120]
[321241258,1712009472713,-538.77,0.00058629,120]
[321241259,1712009472723,-500.0,0.00058629,120]
[321241260,1712009472732,-1155.33,0.00058629,120]
[321241261,1712009472741,-1097.78,0.00058629,120]
[321241262,1712009472753,-662.87,0.00058629,120]
[321241263,1712009472762,-543.14,0.00058629,120]
[321241264,1712009472771,-1265.41,0.00058629,120]
[321241265,1712009472781,-1148.89,0.00058629,120]
[321241266,1712009472791,-500.0,0.00058629,120]
[321241267,1712009472802,-517.77,0.00058629,120]
[321241268,1712009472811,-500.0,0.00058629,120]
[321241269,1712009472821,-500.0,0.00058629,120]
[321241270,1712009472833,-546.82,0.00058629,120]
[321241271,1712009472843,-527.78,0.00058629,120]
[321241272,1712009472853,-500.0,0.0005863,120]
[321241273,1712009472863,-500.0,0.0005863,120]
[321241274,1712009472873,-500.0,0.0005863,120]
[321241275,1712009472883,-551.71,0.0005863,120]
[321241276,1712009472892,-500.0,0.0005863,120]
[321241277,1712009472902,-500.0,0.0005863,120]
[321241278,1712009472911,-468.82,0.0005863,120]
[321241279,1712009472921,-500.0,0.0005863,120]
[321241280,1712009472930,-500.0,0.0005863,120]
[321241281,1712009472939,-150.0,0.0005863,120]
[321241282,1712009472948,-500.0,0.0005863,120]
[321241283,1712009472958,-500.0,0.0005863,120]
[321241284,1712009472967,-500.0,0.0005863,120]
[321241285,1712009472976,-500.0,0.0005863,120]
[321241286,1712009472985,-500.0,0.0005863,120]
[321241287,1712009472995,-500.0,0.0005863,120]
[321241288,1712009473005,-567.46,0.0005863,120]
[321241289,1712009473014,-2940.4,0.0005863,120]
[321241290,1712009473024,-500.0,0.0005863,120]
[321241291,1712009473033,-9617.67,0.0005863,120]
[321241292,1712009473042,-291.74,0.0005863,120]
[321241293,1712009473051,-3963.56,0.0005863,120]
[321241294,1712009473061,-500.0,0.0005863,120]
[321241295,1712009473071,-1171.94,0.0005863,120]
[321241296,1712009473080,-1592.94,0.0005863,120]
[321241297,1712009473090,-500.0,0.0005863,120]
[321241298,1712009473100,-500.0,0.0005863,120]
[321241299,1712009473109,-519.04,0.0005863,120]
[321241300,1712009473118,-500.0,0.0005863,120]
[321241301,1712009473127,-500.0,0.0005863,120]
[321241302,1712009473136,-500.0,0.0005863,120]
[321241303,1712009473145,-649.04,0.0005863,120]
[321241304,1712009473155,-500.0,0.0005863,120]
[321241305,1712009473165,-735.74,0.0005863,120]
[321241306,1712009473175,-2396.91,0.0005863,120]
[321241307,1712009473185,-710.69,0.0005863,120]
[321241308,1712009473195,-500.0,0.0005863,120]
[321241309,1712009473204,-5307.53,0.0005863,120]
[321241310,1712009473214,-509.91,0.0005863,120]
[321241311,1712009473223,-674.12,0.0005863,120]
[321241312,1712009473233,-500.0,0.0005863,120]
[321241313,1712009473242,-7130.05,0.0005863,120]
[321241314,1712009473252,-503.33,0.0005863,120]
[321241315,1712009473261,-784.39,0.0005863,120]
[321241316,1712009473271,-500.0,0.0005863,120]
[321241317,1712009473281,-583.87,0.0005863,120]
[321241318,1712009473290,-683.13,0.0005863,120]
[321241319,1712009473300,-8568.4,0.0005863,120]
[321241320,1712009473311,-500.0,0.0005863,120]
[321241321,1712009473321,-828.92,0.0005863,120]
[321241322,1712009473331,-718.19,0.0005863,120]
[321241323,1712009473341,-500.0,0.0005863,120]
[321241324,1712009473351,-524.83,0.0005863,120]
[321241325,1712009473360,-644.16,0.0005863,21]
[321241326,1712009473370,-1373.74,0.0005863,120]
[321241327,1712009473380,-526.38,0.0005863,120]
[321241328,1712009473390,-594.12,0.0005863,120]
[321241329,1712009473400,-610.54,0.0005863,120]
[321241330,1712009473410,-595.4,0.0005863,120]
[321241331,1712009473419,-500.0,0.0005863,120]
[321241332,1712009473430,-1259.72,0.0005863,120]
[321241333,1712009473439,-500.0,0.0005863,120]
[321241334,1712009473450,-500.0,0.0005863,120]
[321241335,1712009473459,-674.09,0.0005863,120]
[321241336,1712009473469,-500.0,0.0005863,120]
[321241337,1712009473479,-500.0,0.0005863,120]
[321241338,1712009473489,-1198.7,0.0005863,120]
[321241339,1712009473498,-500.0,0.0005863,120]
[321241340,1712009473508,-521.23,0.0005863,120]
[321241341,1712009473517,-662.7,0.0005863,120]
[321241342,1712009473526,-601.98,0.0005863,120]
[321241343,1712009473536,-521.91,0.0005863,120]
[321241344,1712009473545,-763.21,0.0005863,120]
[321241345,1712009473554,-500.0,0.0005863,120]
[321241346,1712009473564,-575.65,0.0005863,120]
[321241347,1712009473574,-541.69,0.0005863,120]
[321241348,1712009473585,-2967.44,0.0005863,120]
[321241349,1712009473594,-1260.46,0.0005863,120]
[321241350,1712009473604,-1749.5,0.0005863,120]
[321241351,1712009473613,-540.76,0.0005863,120]
[321241352,1712009473623,-1186.18,0.0005863,120]
[321241353,1712009473634,-910.97,0.0005863,120]
[321241354,1712009473644,-500.0,0.0005863,120]
[321241355,1712009473654,-654.57,0.0005863,120]
[321241356,1712009473663,-1734.15,0.0005863,120]
[321241357,1712009473673,-932.52,0.0005863,120]
[321241358,1712009473682,-622.78,0.0005863,120]
[321241359,1712009473775,-534.95,0.0005863,120]
[321241360,1712009473785,-1828.04,0.0005863,120]
[321241361,1712009473795,-441.05,0.0005863,120]
[321241362,1712009473805,-644.85,0.0005863,120]
[321241363,1712009473814,-627.7,0.0005863,120]
[321241364,1712009473825,-500.0,0.0005863,120]
[321241365,1712009473836,-532.88,0.0005863,120]
[321241366,1712009473847,-500.0,0.0005863,120]
[321241367,1712009473857,-284.6,0.0005863,7]
[321241368,1712009473867,-500.0,0.0005863,120]
[321241369,1712009473877,-1511.02,0.0005863,120]
[321241370,1712009473887,-539.45,0.0005863,120]
[321241371,1712009473897,-500.0,0.0005863,120]
[321241372,1712009473907,-1184.28,0.0005863,120]
[321241373,1712009473916,-500.0,0.0005863,120]
[321241374,1712009473926,-545.44,0.0005863,120]
[321241375,1712009473935,-223.80814434,0.00058799,2]
[321241376,1712009473944,-157.040206,0.00058818,118]
[321241377,1712009473953,-157.040206,0.00058838,118]
[321241378,1712009473962,-157.040206,0.00058858,118]
[321241379,1712009473972,-200.0,0.0005887,90]
[321241380,1712009473981,-200.0,0.0005887,90]
[321241381,1712009473992,-157.040206,0.00058878,118]
[321241382,1712009474001,-988.0,0.00058879,120]
[321241383,1712009474010,-988.0,0.00058879,120]
[321241384,1712009474019,-988.0,0.00058879,120]
[321241385,1712009474028,-988.0,0.00058879,120]
[321241386,1712009474037,-1014.23,0.00058879,120]
[321241387,1712009474047,-150.0,0.00058879,120]
[321241388,1712009474055,-391.73794021,0.0005888,31]
[321241389,1712009474065,-632358.25206171,0.0005888,7]
[321241390,1712009474073,-151.0,0.0005888,7]
[321241391,1712009474083,-151.0,0.0005888,120]
[321241392,1712009474092,-2000.0,0.00058899,120]
[321241393,1712009474101,-4599.999999,0.000589,120]
[321241394,1712009474110,-236779.59170366,0.000589,120]
[321241395,1712009474120,-857.48,0.000589,30]
[321241396,1712009474130,-2200.0,0.000589,21]
[321241397,1712009474139,-538.77,0.00058903,120]
[321241398,1712009474148,-500.0,0.00058903,120]
[321241399,1712009474157,-1155.33,0.00058903,120]
[321241400,1712009474166,-1097.78,0.00058903,120]
[321241401,1712009474176,-662.87,0.00058903,120]
[321241402,1712009474185,-543.14,0.00058903,120]
[321241403,1712009474195,-1265.41,0.00058903,120]
[321241404,1712009474204,-1148.89,0.00058903,120]
[321241405,1712009474214,-500.0,0.00058903,120]
[321241406,1712009474223,-517.77,0.00058903,120]
[321241407,1712009474233,-500.0,0.00058903,120]
[321241408,1712009474243,-500.0,0.00058903,120]
[321241409,1712009474252,-546.82,0.00058903,120]
[321241410,1712009474263,-527.78,0.00058903,120]
[321241411,1712009474272,-500.0,0.00058904,120]
[321241412,1712009474281,-500.0,0.00058904,120]
[321241413,1712009474290,-407.4,0.00058904,120]
[321241414,1712009474299,-551.71,0.00058904,120]
[321241415,1712009474309,-500.0,0.00058904,120]
[321241416,1712009474319,-610.6,0.00058904,120]
[321241417,1712009474328,-500.0,0.00058904,120]
[321241418,1712009474337,-500.0,0.00058904,120]
[321241419,1712009474347,-265.36,0.00058904,120]
[321241420,1712009474356,-500.0,0.00058904,120]
[321241421,1712009474365,-500.0,0.00058904,120]
[321241422,1712009474374,-500.0,0.00058904,120]
[321241423,1712009474384,-500.0,0.00058904,120]
[321241424,1712009474393,-500.0,0.00058904,120]
[321241425,1712009474402,-500.0,0.00058904,120]
[321241426,1712009474412,-567.46,0.00058904,120]
[321241427,1712009474421,-2940.4,0.00058904,120]
[321241428,1712009474431,-500.0,0.00058904,120]
[321241429,1712009474440,-9617.67,0.00058904,120]
[321241430,1712009474449,-3963.56,0.00058904,120]
[321241431,1712009474458,-500.0,0.00058904,120]
[321241432,1712009474468,-1171.94,0.00058904,120]
[321241433,1712009474477,-1592.94,0.00058904,120]
[321241434,1712009474486,-500.0,0.00058904,120]
[321241435,1712009474495,-301.68,0.00058904,120]
[321241436,1712009474505,-519.04,0.00058904,120]
[321241437,1712009474514,-500.0,0.00058904,120]
[321241438,1712009474523,-500.0,0.00058904,120]
[321241439,1712009474532,-500.0,0.00058904,120]
[321241440,1712009474541,-649.04,0.00058904,120]
[321241441,1712009474550,-500.0,0.00058904,120]
[321241442,1712009474559,-735.74,0.00058904,120]
[321241443,1712009474567,-2396.91,0.00058904,120]
[321241444,1712009474577,-710.69,0.00058904,120]
[321241445,1712009474586,-500.0,0.00058904,120]
[321241446,1712009474595,-5307.53,0.00058904,120]
[321241447,1712009474605,-509.91,0.00058904,120]
[321241448,1712009474614,-674.12,0.00058904,120]
[321241449,1712009474624,-500.0,0.00058904,120]
[321241450,1712009474633,-7130.05,0.00058904,120]
[321241451,1712009474642,-784.39,0.00058904,120]
[321241452,1712009474652,-500.0,0.00058904,120]
[321241453,1712009474661,-583.87,0.00058904,120]
[321241454,1712009474671,-683.13,0.00058904,120]
[321241455,1712009474680,-8568.4,0.00058904,120]
[321241456,1712009474691,-500.0,0.00058904,120]
[321241457,1712009474703,-828.92,0.00058904,120]
[321241458,1712009474713,-500.0,0.00058904,120]
[321241459,1712009474723,-718.19,0.00058904,120]
[321241460,1712009474734,-524.83,0.00058904,120]
[321241461,1712009474742,-644.16,0.00058904,21]
[321241462,1712009474753,-1373.74,0.00058904,120]
[321241463,1712009474764,-526.38,0.00058904,120]
[321241464,1712009474774,-594.12,0.00058904,120]
[321241465,1712009474783,-610.54,0.00058904,120]
[321241466,1712009474793,-595.4,0.00058904,120]
[321241467,1712009474803,-500.0,0.00058904,120]
[321241468,1712009474813,-1259.72,0.00058904,120]
[321241469,1712009474823,-500.0,0.00058904,120]
[321241470,1712009474833,-500.0,0.00058904,120]
[321241471,1712009474843,-674.09,0.00058904,120]
[321241472,1712009474852,-500.0,0.00058904,120]
[321241473,1712009474862,-500.0,0.00058904,120]
[321241474,1712009474872,-1198.7,0.00058904,120]
[321241475,1712009474883,-500.0,0.00058904,120]
[321241476,1712009474893,-521.23,0.00058904,120]
[321241477,1712009474903,-662.7,0.00058904,120]
[321241478,1712009474913,-601.98,0.00058904,120]
[321241479,1712009474923,-763.21,0.00058904,120]
[321241480,1712009474932,-521.91,0.00058904,120]
[321241481,1712009474942,-500.0,0.00058904,120]
[321241482,1712009474951,-575.65,0.00058904,120]
[321241483,1712009474961,-541.69,0.00058904,120]
[321241484,1712009474970,-2967.44,0.00058904,120]
[321241485,1712009474979,-1260.46,0.00058904,120]
[321241486,1712009474988,-1749.5,0.00058904,120]
[321241487,1712009474998,-540.76,0.00058904,120]
[321241488,1712009475007,-1186.18,0.00058904,120]
[321241489,1712009475017,-910.97,0.00058904,120]
[321241490,1712009475027,-500.0,0.00058904,120]
[321241491,1712009475037,-654.57,0.00058904,120]
[321241492,1712009475047,-1734.15,0.00058904,120]
[321241493,1712009475140,-932.52,0.00058904,120]
[321241494,1712009475149,-622.78,0.00058904,120]
[321241495,1712009475159,-534.95,0.00058904,120]
[321241496,1712009475169,-1828.04,0.00058904,120]
[321241497,1712009475178,-644.85,0.00058904,120]
[321241498,1712009475188,-627.7,0.00058904,120]
[321241499,1712009475198,-500.0,0.00058904,120]
[321241500,1712009475208,-532.88,0.00058904,120]
[321241501,1712009475217,-500.0,0.00058904,120]
[321241502,1712009475227,-500.0,0.00058904,120]
[321241503,1712009475237,-1511.02,0.00058904,120]
[321241504,1712009475246,-539.45,0.00058904,120]
[321241505,1712009475255,-500.0,0.00058904,120]
[321241506,1712009475265,-1184.28,0.00058904,120]
[321241507,1712009475275,-500.0,0.00058904,120]
[321241508,1712009475284,-545.44,0.00058904,120]
[321241509,1712009475293,-591.84,0.00058988,120]
[321241510,1712009475303,-604.0,0.00058989,7]
[321241511,1712009475313,-1000.12345778,0.00059,120]
[321241512,1712009475322,-2500.0,0.00059,120]
[321241513,1712009475332,-478.29,0.00059,120]
[321241514,1712009475342,-1028.73889327,0.00059,60]
[321241515,1712009475351,-337.84,0.00059074,2]
[321241516,1712009475361,-5068.45846466,0.0005912,2]
[321241517,1712009475371,-152.21,0.00059137,120]
[321241518,1712009475382,-1103.94192926,0.00059153,2]
[321241519,1712009475391,-219.29110789,0.00059157,120]
[321241520,1712009475401,-1364.38061967,0.00059157,4]
[321241521,1712009475410,-322.93917993,0.00059157,4]
[321241522,1712009475420,-155.47290894,0.00059157,2]
[321241523,1712009475430,-693.43371703,0.00059157,4]
[321241524,1712009475439,-155.0,0.00059157,4]
[321241525,1712009475449,-18694.57447643,0.00059157,4]
[321241526,1712009475459,-1040.18522991,0.00059157,4]
[321241527,1712009475469,-538.77,0.00059176,120]
[321241528,1712009475479,-500.0,0.00059176,120]
[321241529,1712009475488,-1155.33,0.00059176,120]
[321241530,1712009475498,-1097.78,0.00059176,120]
[321241531,1712009475507,-662.87,0.00059176,120]
[321241532,1712009475516,-543.14,0.00059176,120]
[321241533,1712009475526,-1265.41,0.00059176,120]
[321241534,1712009475536,-1148.89,0.00059176,120]
[321241535,1712009475545,-500.0,0.00059176,120]
[321241536,1712009475555,-517.77,0.00059176,120]
[321241537,1712009475564,-500.0,0.00059176,120]
[321241538,1712009475573,-500.0,0.00059176,120]
[321241539,1712009475583,-546.82,0.00059176,120]
[321241540,1712009475593,-527.78,0.00059176,120]
[321241541,1712009475602,-500.0,0.00059178,120]
[321241542,1712009475611,-500.0,0.00059178,120]
[321241543,1712009475621,-551.71,0.00059178,120]
[321241544,1712009475630,-500.0,0.00059178,120]
[321241545,1712009475639,-500.0,0.00059178,120]
[321241546,1712009475649,-500.0,0.00059178,120]
[321241547,1712009475658,-500.0,0.00059178,120]
[321241548,1712009475667,-500.0,0.00059178,120]
[321241549,1712009475677,-500.0,0.00059178,120]
[321241550,1712009475687,-160.07,0.00059178,120]
[321241551,1712009475696,-500.0,0.00059178,120]
[321241552,1712009475704,-500.0,0.00059178,120]
[321241553,1712009475713,-567.46,0.00059178,120]
[321241554,1712009475722,-500.0,0.00059178,120]
[321241555,1712009475732,-2940.4,0.00059178,120]
[321241556,1712009475741,-9617.67,0.00059178,120]
[321241557,1712009475752,-3963.56,0.00059178,120]
[321241558,1712009475765,-500.0,0.00059178,120]
[321241559,1712009475774,-1171.94,0.00059178,120]
[321241560,1712009475783,-1592.94,0.00059178,120]
[321241561,1712009475794,-500.0,0.00059178,120]
[321241562,1712009475803,-519.04,0.00059178,120]
[321241563,1712009475812,-500.0,0.00059178,120]
[321241564,1712009475822,-500.0,0.00059178,120]
[321241565,1712009475833,-500.0,0.00059178,120]
[321241566,1712009475842,-649.04,0.00059178,120]
[321241567,1712009475851,-500.0,0.00059178,120]
[321241568,1712009475861,-735.74,0.00059178,120]
[321241569,1712009475870,-2396.91,0.00059178,120]
[321241570,1712009475880,-710.69,0.00059178,120]
[321241571,1712009475890,-500.0,0.00059178,120]
[321241572,1712009475900,-5307.53,0.00059178,120]
[321241573,1712009475909,-509.91,0.00059178,120]
[321241574,1712009475918,-674.12,0.00059178,120]
[321241575,1712009475928,-500.0,0.00059178,120]
[321241576,1712009475939,-7130.05,0.00059178,120]
[321241577,1712009475948,-784.39,0.00059178,120]
[321241578,1712009475957,-500.0,0.00059178,120]
[321241579,1712009475966,-583.87,0.00059178,120]
[321241580,1712009475976,-683.13,0.00059178,120]
[321241581,1712009475986,-8568.4,0.00059178,120]
[321241582,1712009475995,-500.0,0.00059178,120]
[321241583,1712009476005,-828.92,0.00059178,120]
[321241584,1712009476015,-500.0,0.00059178,120]
[321241585,1712009476025,-718.19,0.00059178,120]
[321241586,1712009476036,-524.83,0.00059178,120]
[321241587,1712009476046,-644.16,0.00059178,21]
[321241588,1712009476056,-1373.74,0.00059178,120]
[321241589,1712009476066,-526.38,0.00059178,120]
[321241590,1712009476076,-594.12,0.00059178,120]
[321241591,1712009476085,-610.54,0.00059178,120]
[321241592,1712009476097,-595.4,0.00059178,120]
[321241593,1712009476106,-500.0,0.00059178,120]
[321241594,1712009476115,-1259.72,0.00059178,120]
[321241595,1712009476125,-500.0,0.00059178,120]
[321241596,1712009476136,-500.0,0.00059178,120]
[321241597,1712009476146,-674.09,0.00059178,120]
[321241598,1712009476156,-500.0,0.00059178,120]
[321241599,1712009476166,-500.0,0.00059178,120]
[321241600,1712009476175,-1198.7,0.00059178,120]
[321241601,1712009476185,-500.0,0.00059178,120]
[321241602,1712009476195,-521.23,0.00059178,120]
[321241603,1712009476205,-662.7,0.00059178,120]
[321241604,1712009476215,-601.98,0.00059178,120]
[321241605,1712009476225,-521.91,0.00059178,120]
[321241606,1712009476235,-763.21,0.00059178,120]
[321241607,1712009476244,-500.0,0.00059178,120]
[321241608,1712009476254,-575.65,0.00059178,120]
[321241609,1712009476264,-541.69,0.00059178,120]
[321241610,1712009476274,-2967.44,0.00059178,120]
[321241611,1712009476283,-1260.46,0.00059178,120]
[321241612,1712009476293,-1749.5,0.00059178,120]
[321241613,1712009476302,-540.76,0.00059178,120]
[321241614,1712009476312,-1186.18,0.00059178,120]
[321241615,1712009476322,-910.97,0.00059178,120]
[321241616,1712009476331,-500.0,0.00059178,120]
[321241617,1712009476341,-654.57,0.00059178,120]
[321241618,1712009476351,-1734.15,0.00059178,120]
[321241619,1712009476361,-932.52,0.00059178,120]
[321241620,1712009476370,-622.78,0.00059178,120]
[321241621,1712009476380,-534.95,0.00059178,120]
[321241622,1712009476390,-1828.04,0.00059178,120]
[321241623,1712009476399,-644.85,0.00059178,120]
[321241624,1712009476409,-627.7,0.00059178,120]
[321241625,1712009476417,-500.0,0.00059178,120]
[321241626,1712009476427,-532.88,0.00059178,120]
[321241627,1712009476436,-500.0,0.00059178,120]
[321241628,1712009476446,-500.0,0.00059178,120]
[321241629,1712009476455,-1511.02,0.00059178,120]
[321241630,1712009476465,-500.0,0.00059178,120]
[321241631,1712009476474,-539.45,0.00059178,120]
[321241632,1712009476484,-1184.28,0.00059178,120]
[321241633,1712009476493,-468.26,0.00059178,120]
[321241634,1712009476502,-545.44,0.00059178,120]
[321241635,1712009476512,-161.317625,0.00059191,30]
[321241636,1712009476521,-171.865585,0.00059191,30]
[321241637,1712009476530,-261.76679,0.00059191,30]
[321241638,1712009476540,-1211.0,0.000592,4]
[321241639,1712009476550,-5283.13851962,0.00059327,38]
[321241640,1712009476559,-769.14,0.00059357,120]
[321241641,1712009476568,-1000.0,0.00059396,120]
[321241642,1712009476577,-538.77,0.0005945,120]
[321241643,1712009476586,-500.0,0.0005945,120]
[321241644,1712009476595,-1155.33,0.0005945,120]
[321241645,1712009476605,-1097.78,0.0005945,120]
[321241646,1712009476615,-662.87,0.0005945,120]
[321241647,1712009476624,-543.14,0.0005945,120]
[321241648,1712009476633,-1265.41,0.0005945,120]